Workbook

Sheet Sheet1
C4: Program Profitability Calculator
B7: Steps: | C7: Inputs: | H7: Scenarios:
B9: *** Note - the figures only calculate | C9: Planned Sales Units % to LY: | D9: =IF(ISERROR((D12-E12)/E12),"-",(D12-E12)/E12) -> -0.05185185185 | H9: Domestic Vendors:
B10: correctly if the Projected GM% is less than | H10: 1) What is the projected shortfall or debit need?
B11: the GM % Plan | C11: Metric | D11: TY | E11: LY
C12: Reg Sales U | D12: 128000 | E12: 135000 | H12: 2) How many cancels are required to achieve GM % Plan?
B13: 1) Enter TY LY info in yellow cells only | C13: Ticket | D13: 22 | E13: 20
C14: Reg Selling Price | D14: 16 | E14: 15 | H14: 3) Number of units vendor agrees to cancel:
C15: Cost | D15: 6.5 | E15: 6
C16: Receipt Units | D16: 255000 | E16: 260000 | H16: 4) What is the new GM $ shortfall (debit need)?
B18: 2) Enter TY / LY GM% plan | C18: GM % Plan | D18: 0.45 | E18: 0.45 | H18: 5) What is the new cost on the balance of on-order needed to achieve GM % plan?
H19: 235000 | I19: 4887.43811
C20: Gross Margin Projected: | D20: =D44 -> 0.37256906 | E20: =E44 -> 0.3897310513
D21: 260000 | H21: International Vendors:
C22: Assumptions: | H22: 1) What is the Reg Selling Price needed to achieve GM % Plan?
B23: 3) These are the default assumptions; | C23: First Markdown: | D23: 0.75 | I23: 15
B24: they can be changed if needed | C24: Second Markdown: | D24: 0.9 | H24: 2) How many TY Reg Sales Units are required to achive GM% plan?
I25: 155000
C26: First Markdown Sell-Through %: | D26: 0.75 | H26: 3) What is the Ticket Price Required to achieve GM % Plan?
C27: Second Markdown Sell-Through %: | D27: 1 | I27: 20
C29: Calculations:
C30: TTL Program (Reg & Clr) | D30: TY | E30: LY | H30: Reg Price | I30: TY | J30: LY
C31: Reg Sales $ | D31: =D12*D14 -> 2048000 | E31: =E12*E14 -> 2025000 | H31: Reg Sell thru % | I31: =D12/D16 -> 0.5019607843 | J31: =E12/E16 -> 0.5192307692
C32: IMU% | D32: =1-(D15/D13) -> 0.7045454545 | E32: =1-(E15/E13) -> 0.7 | H32: Reg PLU Markdown $$ | I32: =(D13-D14)*D12 -> 768000 | J32: =(E13-E14)*E12 -> 675000
C33: Receipt $$ Retail | D33: =D16*D13 -> 5610000 | E33: =E16*E13 -> 5200000 | H33: Reg PLU Markdown Rate | I33: =I32/D31 -> 0.375 | J33: =J32/E31 -> 0.3333333333
C34: Receipt $$ Cost | D34: =D16*D15 -> 1657500 | E34: =E16*E15 -> 1560000 | H34: Reg % off rate | I34: =1-(D14/D13) -> 0.2727272727 | J34: =1-(E14/E13) -> 0.25
C35: TTL Sales U | D35: =I40+D12 -> 255000 | E35: =J40+E12 -> 260000 | H35: Reg Price $$ COGS | I35: =D12*D15 -> 832000 | J35: =E12*E15 -> 810000
C36: TTL Sales $ | D36: =I41+D31 -> 2641725 | E36: =J41+E31 -> 2556250 | H36: Reg Price Gross Margin $ | I36: =D31-I35 -> 1216000 | J36: =E31-J35 -> 1215000
C37: TTL Selling Price | D37: =D36/D35 -> 10.35970588 | E37: =E36/E35 -> 9.831730769 | H37: Reg Price Gross Margin % | I37: =I36/D31 -> 0.59375 | J37: =J36/E31 -> 0.6
C38: TTL Sell thru % | D38: =D35/D16 -> 1 | E38: =E35/E16 -> 1
C39: TTL Markdown $$ | D39: =I44+I54 -> 4295775 | E39: =J44+J54 -> 3843750 | H39: TTL Clearance | I39: TY | J39: LY
C40: TTL Markdown Rate | D40: =D39/D36 -> 1.626124975 | E40: =E39/E36 -> 1.503667482 | H40: Clr Sales U | I40: =I57+I70 -> 127000 | J40: =J57+J70 -> 125000
C41: TTL % off rate | D41: =1-(D37/D13) -> 0.5291042781 | E41: =1-(E37/E13) -> 0.5084134615 | H41: Clr Sales $ | I41: =I58+I71 -> 593725 | J41: =J58+J71 -> 531250
C42: TTL $$ COGS (Receipt Cost) | D42: =D35*D15 -> 1657500 | E42: =E35*E15 -> 1560000 | H42: Clr Selling Price | I42: =I41/I40 -> 4.675 | J42: =J41/J40 -> 4.25
C43: TTL Gross Margin $ | D43: =D36-D42 -> 984225 | E43: =E36-E42 -> 996250 | H43: Clr Sell thru % | I43: =I40/I52 -> 1 | J43: =J40/J52 -> 1
C44: TTL Gross Margin % | D44: =IF(ISERROR(D43/D36),"-",(D43/D36)) -> 0.37256906 | E44: =IF(ISERROR(E43/E36),"-",(E43/E36)) -> 0.3897310513 | H44: Clr Markdown $ | I44: =I54+I67 -> 2200275 | J44: =J54+J67 -> 1968750
C45: TTL Gross Margin $ PLAN | D45: =D46*D36 -> 1188776.25 | E45: =E46*E36 -> 1150312.5 | H45: Clr Markdown Rate | I45: =I44/I41 -> 3.705882353 | J45: =J44/J41 -> 3.705882353
C46: TTL Gross Margin % PLAN | D46: =D18 -> 0.45 | E46: =E18 -> 0.45 | H46: Clr % off rate | I46: =1-(I42/D13) -> 0.7875 | J46: =1-(J42/E13) -> 0.7875
C47: TTL Gross Margin $ Shortfall | D47: =D45-D43 -> 204551.25 | E47: =E45-E43 -> 154062.5 | H47: Clr $$ COGS | I47: =I40*D15 -> 825500 | J47: =J40*E15 -> 750000
C48: TTL Debits Needed | D48: =D47 -> 204551.25 | E48: =E47 -> 154062.5 | H48: Clr Gross Margin $ | I48: =I41-I47 -> -231775 | J48: =J41-J47 -> -218750
C49: Future Per Unit Cost Needed | D49: =D15-(D48/D35) -> 5.697838235 | E49: =E15-(E48/E35) -> 5.407451923 | H49: Clr Gross Margin % | I49: =I48/I41 -> -0.3903743316 | J49: =J48/J41 -> -0.4117647059
C50: Future IMU Needed | D50: =1-(D49/D13) -> 0.7410073529 | E50: =1-(E49/E13) -> 0.7296274038
H51: ="1st markdown "&D23&" Off" -> 1st markdown 0.75 Off | I51: TY | J51: LY
H52: BOH Inventory U | I52: =D16-D12 -> 127000 | J52: =E16-E12 -> 125000
H53: BOH Inventory $$ | I53: =I52*D13 -> 2794000 | J53: =J52*E13 -> 2500000
H54: Clearance markdown | I54: =(D13*$D$23)*I52 -> 2095500 | J54: =(E13*$D$23)*J52 -> 1875000
H55: Clr Markdown Rate | I55: =I54/I58 -> 4 | J55: =J54/J58 -> 4
H56: Selling Price | I56: =D13*(1-$D$23) -> 5.5 | J56: =E13*(1-$D$23) -> 5
H57: Sales U | I57: =I52*$D$26 -> 95250 | J57: =J52*$D$26 -> 93750
H58: Sales $ | I58: =I57*I56 -> 523875 | J58: =J57*J56 -> 468750
H59: Clr % off Rate | I59: =$D$23 -> 0.75 | J59: =$D$23 -> 0.75
H60: Clr $$ COGS | I60: =I57*D15 -> 619125 | J60: =J57*E15 -> 562500
H61: Clr Gross Margin $ | I61: =I58-I60 -> -95250 | J61: =J58-J60 -> -93750
H62: Clr Gross Margin % | I62: =I61/I58 -> -0.1818181818 | J62: =J61/J58 -> -0.2
H64: ="2nd markdown "&D24&" Off" -> 2nd markdown 0.9 Off | I64: TY | J64: LY
H65: BOH Inventory U | I65: =D16-D12-I57 -> 31750 | J65: =E16-E12-J57 -> 31250
H66: BOH Inventory $$ | I66: =I65*I56 -> 174625 | J66: =J65*J56 -> 156250
H67: Clearance markdown | I67: =(I56-I69)*I70 -> 104775 | J67: =(J56-J69)*J70 -> 93750
H68: Clearance Markdown Rate | I68: =I67/I71 -> 1.5 | J68: =J67/J71 -> 1.5
H69: Selling Price | I69: =D13*(1-$D$24) -> 2.2 | J69: =E13*(1-$D$24) -> 2
H70: Sales U | I70: =I65*$D$27 -> 31750 | J70: =J65*$D$27 -> 31250
H71: Sales $ | I71: =I70*I69 -> 69850 | J71: =J70*J69 -> 62500
H72: Clr % off Rate | I72: =$D$24 -> 0.9 | J72: =$D$24 -> 0.9
H73: Clr $$ COGS | I73: =I70*D15 -> 206375 | J73: =J70*E15 -> 187500
H74: Clr Gross Margin $ | I74: =I71-I73 -> -136525 | J74: =J71-J73 -> -125000
H75: Clr Gross Margin % | I75: =I74/I71 -> -1.954545455 | J75: =J74/J71 -> -2
